fUSD/lending_fUSD_20241220
["ID","MTS","AMOUNT","RATE_DAILY","PERIOD"]
[346132493,1734733846518,-500.0,0.00022191,4]
[346132496,1734733846527,-588.71,0.00022191,4]
[346132498,1734733846537,-542.97,0.00022191,4]
[346132500,1734733846546,-378.97782539,0.00022191,4]
[346132501,1734733846555,-500.0,0.00022191,4]
[346132504,1734733846565,-500.0,0.00022191,4]
[346132506,1734733846574,-623.08,0.00022191,4]
[346132508,1734733846583,-417.86,0.00022191,4]
[346132509,1734733846592,-500.0,0.00022191,4]
[346132511,1734733846601,-500.0,0.00022191,4]
[346132514,1734733846611,-500.0,0.00022191,4]
[346132515,1734733846621,-572.37,0.00022191,4]
[346132518,1734733846630,-646.16,0.00022191,4]
[346132520,1734733846639,-572.61250865,0.00022191,4]
[346132522,1734733846648,-500.0,0.00022191,4]
[346132524,1734733846658,-500.0,0.00022191,4]
[346132526,1734733846668,-511.91,0.00022191,4]
[346132528,1734733846677,-500.0,0.00022191,4]
[346132530,1734733846686,-643.44,0.00022191,4]
[346132532,1734733846695,-500.0,0.00022191,4]
[346132534,1734733846706,-500.0,0.00022191,4]
[346132536,1734733846715,-500.0,0.00022191,4]
[346132537,1734733846725,-500.0,0.00022191,4]
[346132539,1734733846735,-500.0,0.00022191,4]
[346132542,1734733846745,-1196.31,0.00022191,4]
[346132543,1734733846754,-500.0,0.00022191,4]
[346132546,1734733846764,-500.0,0.00022191,4]
[346132548,1734733846773,-500.0,0.00022191,4]
[346132550,1734733846783,-500.0,0.00022191,4]
[346132552,1734733846796,-500.0,0.00022191,4]
[346132554,1734733846805,-500.0,0.00022191,4]
[346132556,1734733846814,-500.0,0.00022191,4]
[346132558,1734733846823,-500.0,0.00022191,4]
[346132560,1734733846833,-500.0,0.00022191,4]
[346132562,1734733846842,-500.0,0.00022191,4]
[346132564,1734733846851,-500.0,0.00022191,4]
[346132565,1734733846860,-500.0,0.00022191,4]
[346132568,1734733846872,-500.0,0.00022191,4]
[346132570,1734733846881,-500.0,0.00022191,4]
[346132572,1734733846890,-500.0,0.00022191,4]
[346132574,1734733846900,-1430.13,0.00022191,4]
[346132576,1734733846909,-623.06,0.00022191,4]
[346132578,1734733846918,-500.0,0.00022191,4]
[346132579,1734733846927,-500.0,0.00022191,4]
[346132582,1734733846936,-500.0,0.00022191,4]
[346132584,1734733846945,-500.0,0.00022191,4]
[346132586,1734733846954,-500.0,0.00022191,4]
[346132588,1734733846964,-500.0,0.00022191,4]
[346132589,1734733846974,-500.0,0.00022191,4]
[346132592,1734733846984,-500.0,0.00022191,4]
[346132594,1734733846993,-500.0,0.00022191,4]
[346132596,1734733847003,-545.38,0.00022191,4]
[346132598,1734733847012,-500.0,0.00022191,4]
[346132600,1734733847021,-500.0,0.00022191,4]
[346132602,1734733847031,-500.0,0.00022191,4]
[346132604,1734733847040,-492.79,0.00022191,4]
[346132606,1734733847049,-500.0,0.00022191,4]
[346132608,1734733847058,-500.0,0.00022191,4]
[346132610,1734733847067,-500.0,0.00022191,4]
[346132612,1734733847077,-510.91,0.00022191,4]
[346132614,1734733847086,-500.0,0.00022191,4]
[346132615,1734733847095,-500.0,0.00022191,4]
[346132617,1734733847104,-500.0,0.00022191,4]
[346132619,1734733847113,-596.55,0.00022191,4]
[346132621,1734733847122,-500.0,0.00022191,4]
[346132623,1734733847132,-500.0,0.00022191,4]
[346132625,1734733847141,-333.71,0.00022191,4]
[346132627,1734733847150,-500.0,0.00022191,4]
[346132629,1734733847158,-500.0,0.00022191,4]
[346132631,1734733847167,-358.52,0.00022191,4]
[346132633,1734733847177,-500.0,0.00022191,4]
[346132635,1734733847186,-554.28,0.00022191,4]
[346132637,1734733847194,-548.74,0.00022191,4]
[346132639,1734733847204,-500.0,0.00022191,4]
[346132642,1734733847213,-500.0,0.00022191,4]
[346132644,1734733847222,-500.0,0.00022191,4]
[346132646,1734733847231,-500.0,0.00022191,4]
[346132648,1734733847241,-500.0,0.00022191,4]
[346132650,1734733847251,-500.0,0.00022191,4]
[346132651,1734733847260,-500.0,0.00022191,4]
[346132652,1734733847269,-500.0,0.00022191,4]
[346132653,1734733847278,-1253.3,0.00022191,4]
[346132654,1734733847287,-500.0,0.00022191,4]
[346132655,1734733847296,-1840.89,0.00022191,4]
[346132656,1734733847305,-491.12124179,0.00022191,4]
[346132657,1734733847314,-500.0,0.00022191,4]
[346132658,1734733847323,-500.0,0.00022191,4]
[346132659,1734733847332,-500.0,0.00022191,4]
[346132660,1734733847341,-500.0,0.00022191,4]
[346132661,1734733847351,-500.0,0.00022191,4]
[346132663,1734733847360,-500.0,0.00022191,4]
[346132665,1734733847369,-500.0,0.00022191,4]
[346132667,1734733847378,-500.0,0.00022191,4]
[346132669,1734733847388,-500.0,0.00022191,4]
[346132671,1734733847397,-500.0,0.00022191,4]
[346132673,1734733847406,-500.0,0.00022191,4]
[346132675,1734733847415,-500.0,0.00022191,4]
[346132677,1734733847425,-500.0,0.00022191,4]
[346132679,1734733847435,-154.94,0.00022191,4]
[346132681,1734733847444,-500.0,0.00022191,4]
[346132683,1734733847453,-1822.18,0.00022191,4]
[346132685,1734733847463,-447.03,0.00022191,4]
[346132687,1734733847472,-330.62,0.00022191,4]
[346132689,1734733847481,-500.0,0.00022191,4]
[346132691,1734733847491,-500.0,0.00022191,4]
[346132693,1734733847500,-500.0,0.00022191,4]
[346132695,1734733847509,-500.0,0.00022191,4]
[346132697,1734733847518,-1000.0,0.000222,2]
[346132699,1734733847527,-743.85031268,0.00022253,2]
[346132702,1734733847537,-809.52410088,0.00022253,2]
[346132704,1734733847546,-2507.0,0.000223,4]
[346132705,1734733847556,-500.0,0.00022327,2]
[346132708,1734733847566,-194.58,0.0002233,2]
[346132710,1734733847575,-541.98926522,0.00022339,2]
[346132712,1734733847585,-1345.45813643,0.00022344,2]
[346132714,1734733847594,-200.0,0.00022349,2]
[346132715,1734733847603,-541.98926522,0.0002235,2]
[346132717,1734733847612,-200.0,0.00022351,2]
[346132719,1734733847622,-1345.45813643,0.00022353,2]
[346132722,1734733847631,-200.0,0.00022354,2]
[346132723,1734733847640,-300.0,0.00022356,2]
[346132725,1734733847649,-406.46,0.00022356,2]
[346132727,1734733847659,-1345.45813643,0.00022357,2]
[346132729,1734733847668,-366.33808658,0.00022358,2]
[346132732,1734733847678,-200.0,0.00022358,2]
[346132733,1734733847687,-200.0,0.00022359,2]
[346132736,1734733847696,-341.91833094,0.00022362,2]
[346132738,1734733847706,-341.91833094,0.00022364,2]
[346132740,1734733847717,-200.0,0.00022365,2]
[346132742,1734733847726,-200.0,0.00022366,2]
[346132744,1734733847736,-341.91833094,0.00022368,2]
[346132746,1734733847745,-541.98926522,0.00022369,2]
[346132748,1734733847754,-200.0,0.00022369,2]
[346132750,1734733847763,-1345.45813643,0.00022372,2]
[346132752,1734733847772,-341.91833094,0.00022372,2]
[346132754,1734733847782,-341.91833094,0.00022374,2]
[346132756,1734733847796,-200.0,0.00022376,2]
[346132758,1734733847806,-541.98926522,0.00022377,2]
[346132760,1734733847815,-341.91833094,0.00022379,2]
[346132762,1734733847824,-1345.45813643,0.00022385,2]
[346132764,1734733847834,-200.0,0.0002239,2]
[346132766,1734733847843,-200.0,0.00022391,2]
[346132768,1734733847852,-1345.45813643,0.00022396,2]
[346132770,1734733847861,-541.98926522,0.00022396,2]
[346132772,1734733847871,-541.98926522,0.000224,2]
[346132774,1734733847881,-500.0,0.00022464,2]
[346132776,1734733847891,-500.0,0.00022465,4]
[346132778,1734733847900,-500.0,0.00022465,4]
[346132780,1734733847909,-500.0,0.00022465,4]
[346132782,1734733847920,-500.0,0.00022465,4]
[346132784,1734733847930,-500.0,0.00022465,4]
[346132786,1734733847939,-500.0,0.00022465,4]
[346132788,1734733847949,-416.10099986,0.00022465,4]
[346132790,1734733847958,-500.0,0.00022465,4]
[346132792,1734733847968,-500.0,0.00022465,4]
[346132794,1734733847977,-500.0,0.00022465,4]
[346132796,1734733847987,-500.0,0.00022465,4]
[346132798,1734733847996,-502.54509252,0.00022465,4]
[346132800,1734733848005,-500.0,0.00022465,4]
[346132802,1734733848014,-500.0,0.00022465,4]
[346132804,1734733848023,-500.0,0.00022465,4]
[346132806,1734733848032,-320.67,0.00022465,4]
[346132808,1734733848041,-500.0,0.00022465,4]
[346132810,1734733848050,-500.0,0.00022465,4]
[346132812,1734733848059,-500.0,0.00022465,4]
[346132814,1734733848068,-253.04,0.00022465,4]
[346132816,1734733848078,-187.41,0.00022465,4]
[346132818,1734733848087,-520.79,0.00022465,4]
[346132820,1734733848099,-500.0,0.00022465,4]
[346132822,1734733848108,-500.0,0.00022465,4]
[346132824,1734733848117,-236.93,0.00022465,4]
[346132826,1734733848126,-228.27849135,0.00022465,4]
[346132828,1734733848136,-383.09,0.00022465,4]
[346132830,1734733848145,-500.0,0.00022465,4]
[346132832,1734733848154,-475.45,0.00022465,4]
[346132834,1734733848163,-510.09,0.00022465,4]
[346132836,1734733848172,-159.88,0.00022465,4]
[346132841,1734733848218,-500.0,0.00022465,4]
[346132843,1734733848226,-500.0,0.00022465,4]
[346132845,1734733848235,-500.0,0.00022465,4]
[346132847,1734733848244,-500.0,0.00022465,4]
[346132849,1734733848253,-500.0,0.00022465,4]
[346132851,1734733848262,-500.0,0.00022465,4]
[346132853,1734733848271,-500.0,0.00022465,4]
[346132855,1734733848280,-500.0,0.00022465,4]
[346132857,1734733848290,-366.95,0.00022465,4]
[346132859,1734733848299,-500.0,0.00022465,4]
[346132861,1734733848309,-500.0,0.00022465,4]
[346132863,1734733848319,-500.0,0.00022465,4]
[346132865,1734733848329,-270.5780821,0.00022465,4]
[346132867,1734733848338,-632.12,0.00022465,4]
[346132869,1734733848348,-500.0,0.00022465,2]
[346132872,1734733848360,-500.0,0.00022465,4]
[346132874,1734733848370,-500.0,0.00022465,4]
[346132875,1734733848379,-500.0,0.00022465,4]
[346132878,1734733848397,-531.57,0.00022465,4]
[346132881,1734733848408,-500.0,0.00022465,4]
[346132883,1734733848418,-500.0,0.00022465,4]
[346132885,1734733848428,-550.14,0.00022465,4]
[346132887,1734733848437,-500.0,0.00022465,4]
[346132889,1734733848447,-500.0,0.00022465,4]
[346132891,1734733848456,-500.0,0.00022465,4]
[346132893,1734733848465,-432.58,0.00022465,4]
[346132895,1734733848474,-500.0,0.00022465,4]
[346132897,1734733848487,-500.0,0.00022465,2]
[346132899,1734733848502,-500.0,0.00022465,4]
[346132901,1734733848512,-556.31,0.00022465,4]
[346132903,1734733848522,-240.42,0.00022465,4]
[346132905,1734733848531,-500.0,0.00022465,4]
[346132907,1734733848542,-500.0,0.00022465,4]
[346132909,1734733848552,-500.0,0.00022465,4]
[346132911,1734733848562,-500.0,0.00022465,4]
[346132913,1734733848571,-500.0,0.00022465,4]
[346132915,1734733848581,-500.0,0.00022465,4]
[346132917,1734733848591,-500.0,0.00022465,4]
[346132920,1734733848600,-500.0,0.00022465,4]
[346132921,1734733848610,-546.87,0.00022465,4]
[346132923,1734733848619,-500.0,0.00022465,4]
[346132926,1734733848630,-500.0,0.00022465,4]
[346132927,1734733848639,-500.0,0.00022465,4]
[346132928,1734733848648,-500.0,0.00022465,4]
[346132929,1734733848658,-500.0,0.00022465,4]
[346132930,1734733848667,-528.2892279,0.00022465,4]
[346132931,1734733848677,-500.0,0.00022465,4]
[346132932,1734733848687,-500.0,0.00022465,4]
[346132933,1734733848697,-291.57,0.00022465,4]
[346132934,1734733848707,-500.0,0.00022465,4]
[346132935,1734733848716,-400.46,0.00022465,4]
[346132937,1734733848726,-561.85,0.00022465,4]
[346132939,1734733848735,-500.0,0.00022465,4]
[346132941,1734733848744,-500.0,0.00022465,4]
[346132943,1734733848754,-500.0,0.00022465,4]
[346132945,1734733848763,-500.0,0.00022465,4]
[346132947,1734733848772,-500.0,0.00022465,4]
[346132949,1734733848784,-500.0,0.00022465,4]
[346132951,1734733848795,-500.0,0.00022465,4]
[346132953,1734733848804,-500.0,0.00022465,4]
[346132955,1734733848814,-461.27,0.00022465,4]
[346132957,1734733848823,-500.0,0.00022465,4]
[346132958,1734733848832,-500.0,0.00022465,4]
[346132961,1734733848841,-569.16,0.00022465,4]
[346132963,1734733848851,-500.0,0.00022465,4]
[346132965,1734733848861,-340.5,0.00022465,4]
[346132967,1734733848871,-500.0,0.00022465,4]
[346132969,1734733848881,-500.0,0.00022465,4]
[346132971,1734733848890,-664.37,0.00022465,4]
[346132973,1734733848900,-500.0,0.00022465,4]
[346132975,1734733848909,-500.0,0.00022465,4]
[346132977,1734733848918,-500.0,0.00022465,4]
[346132979,1734733848927,-500.0,0.00022465,4]
[346132981,1734733848937,-588.71,0.00022465,4]
[346132983,1734733848946,-542.97,0.00022465,4]
[346132985,1734733848954,-500.0,0.00022465,4]
[346132987,1734733848963,-500.0,0.00022465,4]
[346132989,1734733848972,-618.16,0.00022465,4]
[346132991,1734733848981,-649.3929462,0.00022465,4]
[346132993,1734733848992,-572.37,0.00022465,4]
[346132994,1734733849002,-500.0,0.00022465,4]
[346132996,1734733849011,-500.0,0.00022465,4]
[346132999,1734733849020,-643.44,0.00022465,4]
[346133001,1734733849030,-500.0,0.00022465,4]
[346133002,1734733849039,-500.0,0.00022465,4]
[346133004,1734733849048,-500.0,0.00022465,4]
[346133007,1734733849057,-1196.31,0.00022465,4]
[346133009,1734733849066,-500.0,0.00022465,4]
[346133010,1734733849075,-500.0,0.00022465,4]
[346133012,1734733849084,-500.0,0.00022465,4]
[346133014,1734733849093,-500.0,0.00022465,4]
[346133016,1734733849103,-500.0,0.00022465,4]
[346133018,1734733849111,-397.8,0.00022465,4]
[346133020,1734733849121,-500.0,0.00022465,4]
[346133022,1734733849131,-500.0,0.00022465,4]
[346133024,1734733849140,-500.0,0.00022465,4]
[346133026,1734733849149,-500.0,0.00022465,4]
[346133028,1734733849158,-500.0,0.00022465,4]
[346133030,1734733849167,-1430.13,0.00022465,4]
[346133032,1734733849176,-500.0,0.00022465,4]
[346133034,1734733849185,-500.0,0.00022465,4]
[346133036,1734733849194,-220.75,0.00022465,4]
[346133038,1734733849203,-500.0,0.00022465,4]
[346133040,1734733849212,-500.0,0.00022465,4]
[346133042,1734733849221,-326.34,0.00022465,4]
[346133044,1734733849230,-500.0,0.00022465,4]
[346133046,1734733849244,-500.0,0.00022465,4]
[346133048,1734733849253,-500.0,0.00022465,4]
[346133050,1734733849263,-500.0,0.00022465,4]
[346133052,1734733849272,-500.0,0.00022465,4]
[346133054,1734733849281,-500.0,0.00022465,4]
[346133056,1734733849290,-500.0,0.00022465,4]
[346133058,1734733849299,-500.0,0.00022465,4]
[346133060,1734733849308,-596.55,0.00022465,4]
[346133062,1734733849317,-227.84,0.00022465,4]
[346133064,1734733849326,-500.0,0.00022465,4]
[346133066,1734733849335,-500.0,0.00022465,4]
[346133068,1734733849345,-554.28,0.00022465,4]
[346133070,1734733849355,-500.0,0.00022465,4]
[346133072,1734733849365,-265.88680917,0.00022465,4]
[346133074,1734733849376,-357.54,0.00022465,4]
[346133076,1734733849386,-500.0,0.00022465,4]
[346133078,1734733849396,-521.3101044,0.00022465,4]
[346133080,1734733849406,-591.89,0.00022465,4]
[346133082,1734733849415,-1253.3,0.00022465,4]
[346133084,1734733849425,-500.0,0.00022465,4]
[346133086,1734733849434,-1840.89,0.00022465,4]
[346133088,1734733849444,-219.53,0.00022465,4]
[346133090,1734733849453,-574.81,0.00022465,4]
[346133092,1734733849463,-500.0,0.00022465,4]
[346133094,1734733849473,-500.0,0.00022465,4]
[346133096,1734733849482,-169.131225,0.00022465,4]
[346133098,1734733849499,-500.0,0.00022465,4]
[346133100,1734733849509,-274.61,0.00022465,4]
[346133103,1734733849519,-500.0,0.00022465,4]
[346133105,1734733849529,-500.0,0.00022465,4]
[346133106,1734733849539,-500.0,0.00022465,4]
[346133108,1734733849550,-1822.18,0.00022465,4]
[346133111,1734733849560,-500.0,0.00022465,4]
[346133112,1734733849571,-594.2,0.00022465,4]
[346133115,1734733849581,-197.12353635,0.00022465,4]
[346133117,1734733849591,-743.85031268,0.00022471,2]
[346133119,1734733849601,-809.52410088,0.00022472,2]
[346133121,1734733849610,-150.0,0.000225,2]
[346133123,1734733849620,-200.0,0.00022503,2]
[346133125,1734733849629,-213.39176307,0.00022511,2]
[346133127,1734733849639,-200.0,0.00022581,2]
[346133129,1734733849648,-500.0,0.00022601,2]
[346133131,1734733849658,-646.0,0.00022672,2]
[346133133,1734733849668,-743.85031268,0.00022689,2]
[346133135,1734733849678,-809.52410088,0.00022691,2]
[346133137,1734733849687,-2900.0,0.000227,2]
[346133139,1734733849696,-500.0,0.00022738,2]
[346133141,1734733849707,-495.54,0.00022739,4]
[346133143,1734733849717,-500.0,0.00022739,4]
[346133145,1734733849727,-500.0,0.00022739,4]
[346133147,1734733849740,-500.0,0.00022739,4]
[346133149,1734733849750,-260.0754416,0.00022739,4]
[346133151,1734733849760,-500.0,0.00022739,4]
[346133153,1734733849769,-500.0,0.00022739,4]
[346133155,1734733849781,-500.0,0.00022739,4]
[346133157,1734733849793,-500.0,0.00022739,4]
[346133159,1734733849803,-500.0,0.00022739,4]
[346133161,1734733849813,-500.0,0.00022739,4]
[346133163,1734733849823,-375.95479415,0.00022739,4]
[346133165,1734733849834,-245.49,0.00022739,4]
[346133167,1734733849845,-500.0,0.00022739,4]
[346133169,1734733849855,-500.0,0.00022739,4]
[346133171,1734733849867,-184.14,0.00022739,4]
[346133173,1734733849877,-500.0,0.00022739,4]
[346133175,1734733849887,-500.0,0.00022739,4]
[346133177,1734733849896,-545.22,0.00022739,4]
[346133179,1734733849906,-500.0,0.00022739,4]
[346133181,1734733849915,-500.0,0.00022739,4]
[346133183,1734733849925,-500.0,0.00022739,4]
[346133185,1734733849934,-565.59,0.00022739,4]
[346133186,1734733849943,-500.0,0.00022739,4]
[346133187,1734733849952,-500.0,0.00022739,4]
[346133188,1734733849961,-500.0,0.00022739,4]
[346133189,1734733849970,-500.0,0.00022739,4]
[346133190,1734733849980,-500.0,0.00022739,4]
[346133191,1734733849991,-500.0,0.00022739,4]
[346133192,1734733850000,-305.88,0.00022739,4]
[346133193,1734733850009,-192.81736151,0.00022739,4]
[346133195,1734733850018,-500.0,0.00022739,4]
[346133197,1734733850028,-500.0,0.00022739,4]
[346133199,1734733850037,-500.0,0.00022739,2]
[346133201,1734733850047,-449.78,0.00022739,4]
[346133203,1734733850056,-500.0,0.00022739,4]
[346133205,1734733850065,-500.0,0.00022739,4]
[346133207,1734733850075,-500.0,0.00022739,4]
[346133209,1734733850084,-500.0,0.00022739,4]
[346133211,1734733850094,-500.0,0.00022739,4]
[346133213,1734733850103,-500.0,0.00022739,4]
[346133215,1734733850112,-500.0,0.00022739,4]
[346133217,1734733850122,-500.0,0.00022739,4]
[346133219,1734733850132,-546.87,0.00022739,4]
[346133221,1734733850143,-244.71,0.00022739,4]
[346133223,1734733850154,-337.12,0.00022739,4]
[346133226,1734733850164,-500.0,0.00022739,4]
[346133228,1734733850173,-489.64,0.00022739,4]
[346133230,1734733850183,-500.0,0.00022739,4]
[346133232,1734733850193,-500.0,0.00022739,4]
[346133234,1734733850203,-500.0,0.00022739,4]
[346133236,1734733850213,-500.0,0.00022739,4]
[346133238,1734733850223,-500.0,0.00022739,4]
[346133240,1734733850232,-500.0,0.00022739,4]
[346133242,1734733850244,-540.18,0.00022739,4]
[346133244,1734733850255,-500.0,0.00022739,4]
[346133246,1734733850265,-500.0,0.00022739,4]
[346133248,1734733850274,-500.0,0.00022739,4]
[346133250,1734733850284,-500.0,0.00022739,4]
[346133252,1734733850294,-168.45,0.00022739,4]
[346133254,1734733850304,-500.0,0.00022739,4]
[346133256,1734733850314,-500.0,0.00022739,4]
[346133258,1734733850323,-500.0,0.00022739,4]
[346133260,1734733850333,-408.18,0.00022739,4]
[346133262,1734733850343,-664.37,0.00022739,4]
[346133264,1734733850353,-500.0,0.00022739,4]
[346133266,1734733850363,-311.42,0.00022739,4]
[346133268,1734733850373,-500.0,0.00022739,4]
[346133270,1734733850383,-588.71,0.00022739,4]
[346133272,1734733850393,-542.97,0.00022739,4]
[346133274,1734733850403,-466.16,0.00022739,4]
[346133276,1734733850413,-500.0,0.00022739,4]
[346133278,1734733850423,-572.37,0.00022739,4]
[346133280,1734733850433,-500.0,0.00022739,4]
[346133282,1734733850443,-313.8,0.00022739,4]
[346133284,1734733850453,-643.44,0.00022739,4]
[346133286,1734733850462,-204.06,0.00022739,4]
[346133289,1734733850471,-500.0,0.00022739,4]
[346133291,1734733850481,-500.0,0.00022739,4]
[346133293,1734733850491,-1196.31,0.00022739,4]
[346133295,1734733850501,-500.0,0.00022739,4]
[346133297,1734733850510,-500.0,0.00022739,4]
[346133299,1734733850520,-500.0,0.00022739,4]
[346133301,1734733850529,-500.0,0.00022739,4]
[346133303,1734733850538,-500.0,0.00022739,4]
[346133305,1734733850547,-361.97,0.00022739,4]
[346133306,1734733850557,-229.06,0.00022739,4]
[346133308,1734733850569,-500.0,0.00022739,4]
[346133309,1734733850579,-500.0,0.00022739,4]
[346133311,1734733850588,-500.0,0.00022739,4]
[346133312,1734733850598,-1430.13,0.00022739,4]
[346133314,1734733850607,-500.0,0.00022739,4]
[346133315,1734733850617,-500.0,0.00022739,4]
[346133317,1734733850626,-500.0,0.00022739,4]
[346133318,1734733850635,-500.0,0.00022739,4]
[346133320,1734733850645,-500.0,0.00022739,4]
[346133321,1734733850654,-500.0,0.00022739,4]
[346133323,1734733850664,-500.0,0.00022739,4]
[346133324,1734733850673,-500.0,0.00022739,4]
[346133326,1734733850682,-500.0,0.00022739,4]
[346133328,1734733850692,-500.0,0.00022739,4]
[346133329,1734733850702,-500.0,0.00022739,4]
[346133331,1734733850712,-596.55,0.00022739,4]
[346133332,1734733850721,-500.0,0.00022739,4]
[346133334,1734733850731,-500.0,0.00022739,4]
[346133335,1734733850744,-554.28,0.00022739,4]
[346133337,1734733850753,-500.0,0.00022739,4]
[346133339,1734733850763,-500.0,0.00022739,4]
[346133340,1734733850773,-1253.3,0.00022739,4]
[346133342,1734733850783,-500.0,0.00022739,4]
[346133344,1734733850796,-1840.89,0.00022739,4]
[346133345,1734733850806,-500.0,0.00022739,4]
[346133347,1734733850815,-500.0,0.00022739,4]
[346133349,1734733850825,-500.0,0.00022739,4]
[346133350,1734733850835,-500.0,0.00022739,4]
[346133352,1734733850845,-500.0,0.00022739,4]
[346133354,1734733850855,-381.32,0.00022739,4]
[346133355,1734733850864,-1822.18,0.00022739,4]
[346133357,1734733850873,-500.0,0.00022739,4]
[346133359,1734733850883,-435.622,0.000228,2]
[346133360,1734733850893,-150.0,0.000228,4]
[346133362,1734733850903,-150.27070953,0.00022849,2]
[346133363,1734733850912,-213.39176307,0.00022859,2]
[346133365,1734733850921,-541.47,0.00022875,2]
[346133367,1734733850931,-295.31,0.000229,2]
[346133368,1734733850941,-743.85031268,0.00022908,2]
[346133370,1734733850951,-809.52410088,0.00022909,2]
[346133372,1734733850960,-700.0,0.00023,2]
[346133373,1734733850970,-220365.232581,0.00023,2]
[346133375,1734733850979,-500.0,0.00023013,4]
[346133377,1734733850990,-500.0,0.00023013,4]
[346133378,1734733850999,-500.0,0.00023013,4]
[346133380,1734733851008,-500.0,0.00023013,4]
[346133381,1734733851018,-500.0,0.00023013,4]
[346133383,1734733851028,-500.0,0.00023013,4]
[346133385,1734733851037,-500.0,0.00023013,4]
[346133386,1734733851047,-500.0,0.00023013,4]
[346133388,1734733851056,-302.65,0.00023013,4]
[346133390,1734733851066,-167.95,0.00023013,4]
[346133391,1734733851075,-556.5993781,0.00023013,4]
[346133393,1734733851085,-500.0,0.00023013,4]
[346133395,1734733851094,-301.64,0.00023013,4]
[346133396,1734733851104,-189.62,0.00023013,4]
[346133398,1734733851113,-642.8,0.00023013,4]
[346133400,1734733851122,-500.0,0.00023013,4]
[346133401,1734733851132,-500.0,0.00023013,4]
[346133403,1734733851141,-500.0,0.00023013,4]
[346133405,1734733851151,-500.0,0.00023013,4]
[346133406,1734733851160,-471.75,0.00023013,4]
[346133408,1734733851170,-500.0,0.00023013,4]
[346133410,1734733851179,-500.0,0.00023013,4]
[346133411,1734733851189,-500.0,0.00023013,2]
[346133413,1734733851198,-500.0,0.00023013,4]
[346133415,1734733851207,-365.85,0.00023013,4]
[346133416,1734733851216,-507.43,0.00023013,4]
[346133418,1734733851226,-500.0,0.00023013,4]
[346133420,1734733851236,-500.0,0.00023013,4]
[346133421,1734733851245,-500.0,0.00023013,4]
[346133423,1734733851255,-500.0,0.00023013,4]
[346133425,1734733851264,-500.0,0.00023013,4]
[346133426,1734733851274,-546.87,0.00023013,4]
[346133428,1734733851283,-320.26,0.00023013,4]
[346133430,1734733851293,-500.0,0.00023013,4]
[346133431,1734733851303,-216.42,0.00023013,4]
[346133433,1734733851312,-500.0,0.00023013,4]
[346133435,1734733851322,-500.0,0.00023013,4]
[346133436,1734733851331,-500.0,0.00023013,4]
[346133438,1734733851341,-500.0,0.00023013,4]
[346133440,1734733851350,-269.48,0.00023013,4]
[346133441,1734733851360,-500.0,0.00023013,4]